bitfinex/quotes_SOLUSD_20241225
["timestamp","ask_amount","ask_price","bid_price","bid_amount"]
[1735128083655,0.12549,196.01,195.92,7.6992]
[1735128084262,0.12549,196.05,195.92,7.6992]
[1735128084463,38.38089,196.05,195.92,7.6992]
[1735128084882,0.12549,196.03,195.92,7.6992]
[1735128085083,0.12549,196.01,195.76,19.0226]
[1735128085271,0.12549,196.01,195.76,6.2522]
[1735128085272,3.04018278,196.0,195.76,6.2522]
[1735128085458,23.776884,195.99,195.76,6.2522]
[1735128086072,0.12549,195.98,195.76,6.2522]
[1735128086379,23.902374,195.96,195.76,6.2522]
[1735128086572,23.902374,195.96,195.77,1.5796]
[1735128087069,23.902374,195.96,195.78,6.2522]
[1735128088354,23.902374,195.94,195.78,6.2522]
[1735128090464,23.902374,195.92,195.78,6.2522]
[1735128091281,23.902374,195.92,195.8,6.2522]
[1735128091784,23.902374,195.9,195.8,6.2522]
[1735128093389,23.902374,195.88,195.8,6.2522]
[1735128093570,20.12549,195.81,195.8,6.2522]
[1735128093774,43.902374,195.81,195.8,6.2522]
[1735128094573,43.776884,195.81,195.64,6.159]
[1735128094781,20.0,195.77,195.64,6.159]
[1735128094965,23.776884,195.88,195.66,6.159]
[1735128095172,20.0,195.85,195.67,0.12549]
[1735128095375,20.0,195.85,195.69,6.28449]
[1735128095579,20.0,195.85,195.7,0.12549]
[1735128095793,6.104,196.02,195.74,0.12549]
[1735128095990,4.83995739,196.01,195.8,20.0]
[1735128096196,12.7583,195.95,195.82,6.159]
[1735128096787,12.7531,196.03,195.82,6.159]
[1735128097174,0.12549,196.02,195.82,6.159]
[1735128097367,25.5063,196.03,195.82,6.159]
[1735128098770,25.5063,196.03,195.83,23.902374]
[1735128098988,25.5063,196.03,195.84,7.7047]
[1735128099595,12.7511,196.06,195.86,6.159]
[1735128099774,12.7511,196.06,195.9,6.159]
[1735128099978,0.12549,196.05,195.9,6.159]
[1735128100177,12.7511,196.06,195.9,6.159]
[1735128100882,0.12549,196.01,195.9,6.159]
[1735128101082,0.12549,195.97,195.9,6.159]
[1735128101290,23.902374,195.97,195.9,6.159]
[1735128101672,20.0,195.94,195.9,6.159]
[1735128102186,20.12549,195.91,195.9,6.159]
[1735128102573,43.902374,195.91,195.9,6.159]
[1735128102765,20.12549,195.91,195.9,6.159]
[1735128102966,12.7574,195.97,195.9,6.159]
[1735128103183,23.902374,195.92,195.9,6.159]
[1735128104391,20.0,195.89,195.84,6.159]
[1735128104595,20.0,195.85,195.84,6.159]
[1735128105498,20.12549,195.85,195.84,6.159]
[1735128105992,43.902374,195.84,195.82,1.5457]
[1735128106174,23.902374,195.84,195.78,6.159]
[1735128107574,20.0,195.81,195.78,6.159]
[1735128108172,0.12549,195.8,195.78,6.159]
[1735128109519,20.0,195.81,195.78,6.159]
[1735128109894,0.12549,195.8,195.78,6.159]
[1735128110214,20.0,195.81,195.78,6.159]
[1735128110789,0.12549,195.8,195.78,6.159]
[1735128111193,23.902374,195.8,195.78,6.159]
[1735128111412,20.12549,195.77,195.72,6.548]
[1735128112112,0.12549,195.76,195.72,6.548]
[1735128112315,20.0,195.73,195.72,6.548]
[1735128112512,43.902374,195.73,195.72,6.548]
[1735128112679,20.0,195.73,195.72,6.548]
[1735128113081,0.12549,195.72,195.67,6.548]
[1735128113399,20.0,195.7,195.67,6.548]
[1735128114220,20.0,195.71,195.67,6.548]
[1735128114419,0.12549,195.7,195.67,6.548]
[1735128114620,0.12549,195.67,195.58,6.548]
[1735128114811,20.12549,195.67,195.58,6.548]
[1735128115103,20.0,195.67,195.58,6.548]
[1735128115286,20.0,195.66,195.58,6.548]
[1735128116711,20.0,195.62,195.58,6.548]
[1735128117292,20.12549,195.61,195.58,6.548]
[1735128117494,0.12549,195.59,195.43,8.0504]
[1735128117693,0.12549,195.56,195.43,8.0504]
[1735128118014,20.0,195.57,195.43,8.0504]
[1735128118799,20.0,195.67,195.46,6.548]
[1735128119006,23.776884,195.66,195.5,0.12549]
[1735128119310,23.776884,195.66,195.49,8.0504]
[1735128119311,23.902374,195.62,195.49,8.0504]
[1735128119493,20.0,195.63,195.49,8.0504]
[1735128119695,20.0,195.67,195.49,8.0504]
[1735128120212,0.12549,195.66,195.49,8.0504]
[1735128120620,31.09749252,195.74,195.52,20.0]
[1735128120621,29.56859252,195.74,195.52,20.0]
[1735128120826,29.56859252,195.74,195.56,20.0]
[1735128120998,29.56859252,195.74,195.57,1.5024]
[1735128122030,20.0,195.68,195.57,1.5024]
[1735128122199,23.776884,195.67,195.57,1.5024]
[1735128122396,20.0,195.68,195.57,1.5024]
[1735128122601,12.7706,195.77,195.58,7.28922223]
[1735128122810,12.7706,195.77,195.61,20.0]
[1735128123018,12.7706,195.77,195.62,28.1392]
[1735128123608,33.22482716,195.86,195.67,8.1392]
[1735128123937,25.5289,195.86,195.67,8.1392]
[1735128124610,9.19872716,195.91,195.71,20.0]
[1735128124816,4.02459252,195.93,195.72,6.5224]
[1735128126539,0.12549,195.87,195.72,6.5224]
[1735128126829,20.0,195.88,195.72,6.5224]
[1735128127126,0.12549,195.87,195.72,6.5224]
[1735128128213,20.0,195.8,195.72,6.5224]
[1735128128619,12.7609,195.91,195.72,6.5224]
[1735128128620,23.776884,195.84,195.72,6.5224]
[1735128128816,12.7653,195.85,195.72,6.5224]
[1735128129132,12.7624,195.89,195.74,1.6168]
[1735128129336,16.78469252,195.93,195.74,1.6168]
[1735128129630,16.78469252,195.93,195.75,43.776884]
[1735128129832,16.78469252,195.93,195.75,23.776884]
[1735128130234,16.78469252,195.93,195.75,20.0]
[1735128130408,20.0,195.9,195.74,1.6168]
[1735128130608,38.2794,195.93,195.74,1.6168]
[1735128130609,23.902374,195.85,195.74,1.6168]
[1735128130931,20.0,195.78,195.74,1.6168]
[1735128132109,23.902374,195.77,195.72,6.5224]
[1735128132433,20.0,195.78,195.72,6.5224]
[1735128133217,23.902374,195.77,195.72,6.5224]
[1735128134522,20.0,195.78,195.72,6.5224]
[1735128134822,20.0,195.79,195.72,6.5224]
[1735128135030,0.12549,195.78,195.72,6.5224]
[1735128135227,20.0,195.75,195.72,6.5224]
[1735128135716,20.0,195.78,195.72,6.5224]
[1735128137247,12.7642,195.86,195.72,6.5224]
[1735128137945,12.7621,195.9,195.74,6.5224]
[1735128138511,0.12549,195.89,195.74,6.5224]
[1735128139317,0.12549,195.86,195.74,6.5224]
[1735128139514,0.12549,195.84,195.74,6.5224]
[1735128139950,20.0,195.82,195.74,6.5224]
[1735128140324,23.902374,195.81,195.74,6.5224]
[1735128140822,20.0,195.78,195.74,6.5224]
[1735128141449,25.5219,195.91,195.74,6.5224]
[1735128141624,20.0,195.87,195.74,6.5224]
[1735128142313,38.2848,195.9,195.74,6.5224]
[1735128142314,12.7616,195.9,195.77,20.0]
[1735128142543,12.7596,195.94,195.79,8.2286]
[1735128143423,38.2633,196.01,195.83,26.6022]
[1735128143628,12.7544,196.01,195.85,6.6022]
[1735128143943,12.7544,196.01,195.86,23.902374]
[1735128144116,12.7544,196.01,195.85,7.36786186]
[1735128144317,0.12549,196.0,195.85,6.6022]
[1735128145244,12.7511,196.06,195.85,6.6022]
[1735128145432,20.0,196.03,195.88,20.0]
[1735128145746,0.12549,196.05,195.89,6.6022]
[1735128145931,12.7511,196.06,195.89,6.6022]
[1735128146125,4.02459252,196.05,195.89,6.6022]
[1735128146545,0.12549,196.02,195.89,6.6022]
[1735128147248,12.7509,196.07,195.92,20.0]
[1735128147845,0.12549,196.06,195.9,1.6264]
[1735128148341,12.87469,196.09,195.92,20.0]
[1735128148529,23.902374,196.05,195.92,20.0]
[1735128148732,20.0,196.02,195.92,20.0]
[1735128149418,12.7492,196.09,195.93,6.6022]
[1735128149623,20.0,196.06,195.93,6.6022]
[1735128150221,27.54536735,196.1,195.98,23.902374]
[1735128150531,12.7444,196.17,196.02,6.6022]
[1735128151634,0.12549,196.16,196.02,6.6022]
[1735128151843,20.0,196.14,196.02,6.6022]
[1735128154949,11.2444,196.17,196.06,1.52]
[1735128155144,27.51699827,196.22,196.07,23.902374]
[1735128155343,27.51699827,196.22,196.08,6.3698]
[1735128155840,27.51699827,196.22,196.11,20.0]
[1735128156652,27.51699827,196.22,196.1,20.0]
[1735128156955,27.51699827,196.22,196.12,6.3698]
[1735128157151,27.51699827,196.22,196.13,1.52]
[1735128157343,25.4669,196.34,196.15,20.0]
[1735128157546,12.7341,196.33,196.17,6.3698]
[1735128158461,12.7341,196.33,196.2,20.0]
[1735128158767,27.4990638,196.35,196.2,20.0]
[1735128158958,27.4990638,196.35,196.21,1.52]
[1735128159131,12.85849,196.34,196.21,1.52]
[1735128160140,0.12549,196.29,196.21,1.52]
[1735128160527,23.902374,196.29,196.21,1.52]
[1735128161150,20.0,196.26,196.21,1.52]
[1735128161573,20.0,196.32,196.21,1.52]
[1735128162944,0.12549,196.33,196.21,1.52]
[1735128164621,27.4990638,196.35,196.22,6.3698]
[1735128166344,23.902374,196.34,196.22,6.3698]
[1735128166546,36.635374,196.34,196.22,6.3698]
[1735128167955,27.4990638,196.35,196.22,6.3698]
[1735128168994,12.7284,196.42,196.25,6.0506]
[1735128169199,38.184,196.42,196.25,6.0506]
[1735128169495,0.12549,196.41,196.25,6.0506]
[1735128169789,6.59749,196.41,196.25,6.0506]
[1735128170088,23.902374,196.39,196.25,6.0506]
[1735128170259,20.0,196.36,196.25,6.0506]
[1735128170463,23.902374,196.31,196.19,6.0506]
[1735128170654,20.0,196.24,196.19,6.0506]
[1735128170851,23.776884,196.23,196.19,6.0506]
[1735128171079,0.12549,196.22,196.19,6.0506]
[1735128171286,20.0,196.2,196.19,6.0506]
[1735128171668,20.0,196.32,196.19,6.0506]
[1735128171869,23.776884,196.31,196.19,6.0506]
[1735128172064,23.902374,196.26,196.19,6.0506]
[1735128172272,23.902374,196.22,196.19,6.0506]
[1735128172472,20.0,196.23,196.19,6.0506]
[1735128172668,20.0,196.27,196.19,6.0506]
[1735128172961,43.902374,196.26,196.19,6.0506]
[1735128173163,23.902374,196.26,196.19,6.0506]
[1735128173757,20.0,196.2,196.19,6.0506]
[1735128173964,25.4647,196.35,196.19,6.0506]
[1735128174280,27.49709911,196.41,196.2,1.5056]
[1735128174587,12.7297,196.39,196.2,1.5056]
[1735128174882,12.7297,196.39,196.25,20.0]
[1735128176665,23.776884,196.38,196.25,20.0]
[1735128177288,0.12549,196.32,196.22,6.0506]
[1735128177486,20.0,196.33,196.22,6.0506]
[1735128177690,12.731,196.37,196.22,6.0506]
[1735128177876,23.776884,196.36,196.22,6.0506]
[1735128178775,23.776884,196.36,196.25,20.0]
[1735128179078,23.776884,196.36,196.22,6.0506]
[1735128179275,23.776884,196.36,196.25,20.0]
[1735128179677,12.731,196.37,196.25,20.0]
[1735128180889,0.12549,196.36,196.25,20.0]
[1735128181189,23.902374,196.36,196.25,20.0]
[1735128182191,20.0,196.37,196.25,20.0]
[1735128182398,12.7291,196.4,196.27,6.0289]
[1735128182692,12.7291,196.4,196.3,20.0]
[1735128183100,12.7268,196.44,196.31,1.5595]
[1735128183471,40.22549911,196.41,196.31,1.5595]
[1735128183883,0.12549,196.4,196.31,1.5595]
[1735128184573,23.902374,196.4,196.31,1.5595]
[1735128184891,23.902374,196.38,196.31,1.5595]
[1735128185597,23.902374,196.38,196.27,6.0289]
[1735128186279,23.902374,196.34,196.27,6.0289]
[1735128186696,0.12549,196.28,196.14,7.5884]
[1735128186995,20.0,196.29,196.14,7.5884]
[1735128186996,23.902374,196.24,196.14,7.5884]
[1735128187400,0.12549,196.2,196.14,7.5884]
[1735128187606,23.902374,196.2,196.14,7.5884]
[1735128187900,23.776884,196.3,196.14,7.5884]
[1735128188077,23.776884,196.26,196.14,7.5884]
[1735128188271,0.12549,196.25,196.14,7.5884]
[1735128188479,0.12549,196.22,196.14,7.5884]
[1735128188696,23.902374,196.22,196.14,7.5884]
[1735128189604,20.0,196.19,196.14,7.5884]
[1735128189879,23.902374,196.22,196.14,7.5884]
[1735128190702,36.643474,196.22,196.14,7.5884]
[1735128191804,0.12549,196.14,196.08,7.5884]
[1735128191983,23.902374,196.14,196.08,7.5884]
[1735128192498,20.0,196.19,196.08,7.5884]
[1735128192798,0.12549,196.13,196.08,6.0289]
[1735128193015,38.2227,196.22,196.02,1.5595]
[1735128193016,23.902374,196.1,196.03,6.0289]
[1735128193213,23.902374,196.06,195.97,6.0289]
[1735128194214,36.653774,196.06,195.97,6.0289]
[1735128194896,36.653774,196.06,195.9,6.0289]
[1735128195080,0.12549,196.02,195.9,6.0289]
[1735128195280,23.902374,196.02,195.9,6.0289]
[1735128197614,0.12549,195.98,195.9,6.0289]
[1735128197978,20.12549,195.98,195.9,6.0289]
[1735128199023,0.12549,195.96,195.9,6.0289]
[1735128199322,1.525,196.07,195.9,6.0289]
[1735128199323,20.0,196.05,195.9,6.0289]
[1735128199489,20.0,196.03,195.9,6.0289]
[1735128200319,0.12549,196.02,195.9,6.0289]
[1735128201088,12.7544,196.01,195.9,6.0289]
[1735128201288,0.12549,195.97,195.9,6.0289]
[1735128201819,23.902374,195.97,195.9,6.0289]
[1735128202330,23.902374,195.93,195.84,6.4908]
[1735128203398,36.662174,195.93,195.84,6.4908]
[1735128203806,23.902374,195.89,195.77,6.4908]
[1735128204411,12.7598,195.93,195.77,6.4908]
[1735128204606,23.776884,195.92,195.77,6.4908]
[1735128205102,0.12549,195.91,195.8,20.0]
[1735128205507,23.776884,195.92,195.8,20.0]
[1735128205816,12.7547,196.01,195.85,21.6588]
[1735128206023,6.1217,196.11,195.86,0.76560381]
[1735128206212,6.1217,196.11,195.91,20.0]
[1735128207214,40.29295451,196.05,195.91,20.0]
[1735128207518,27.54065451,196.05,195.91,20.0]
[1735128207823,23.776884,196.04,195.91,20.0]
[1735128208118,0.12549,196.03,195.88,6.4908]
[1735128208724,20.0,196.01,195.88,6.4908]
[1735128209109,20.0,196.01,195.87,13.52901153]
[1735128209110,27.54065451,196.05,195.92,20.0]
[1735128209333,27.54065451,196.05,195.93,8.1496]
[1735128209501,0.12549,196.04,195.93,8.1496]
[1735128209701,27.54065451,196.05,195.93,8.1496]
[1735128209923,7.6467,196.17,195.96,20.0]
[1735128210233,0.12549,196.13,195.97,20.0]
[1735128210600,12.7464,196.14,195.96,20.0]
[1735128210809,12.7464,196.14,196.0,20.0]
[1735128211318,0.12549,196.21,196.0,20.0]
[1735128211621,18.8625,196.22,196.0,20.0]
[1735128212021,18.8625,196.22,196.02,20.0]
[1735128212323,12.7408,196.22,196.03,6.4908]
[1735128212526,0.12549,196.21,196.03,6.4908]
[1735128212705,0.12549,196.19,196.03,6.4908]
[1735128212896,6.0321,196.18,195.97,6.1654]
[1735128213103,0.12549,196.17,195.97,6.1654]
[1735128213424,0.12549,196.15,195.97,6.1654]
[1735128213628,0.12549,196.08,195.97,6.1654]
[1735128214006,23.902374,196.08,195.97,6.1654]
[1735128214728,23.902374,196.04,195.97,6.1654]
[1735128215628,12.7505,196.08,195.97,6.1654]
[1735128216019,23.776884,196.07,195.97,6.1654]
[1735128216219,23.902374,196.03,195.97,6.1654]
[1735128217335,23.776884,196.05,195.97,6.1654]
[1735128217640,20.0,196.06,195.97,6.1654]
[1735128218113,0.12549,196.05,195.97,6.1654]
[1735128218822,0.12549,196.06,195.97,6.1654]
[1735128219023,23.902374,196.06,195.97,6.1654]
[1735128219227,20.0,196.03,195.97,6.1654]
[1735128219531,12.7504,196.08,195.97,6.1654]
[1735128220125,0.12549,196.07,195.97,6.1654]
[1735128221037,23.902374,196.07,195.97,6.1654]
[1735128221210,12.7478,196.12,195.97,6.1654]
[1735128221717,0.12549,196.1,195.97,6.1654]
[1735128222233,12.7478,196.12,195.97,6.1654]
[1735128222234,0.12549,196.11,195.97,6.1654]
[1735128222920,23.902374,196.08,195.97,6.1654]
[1735128224324,23.902374,196.06,195.97,6.1654]
[1735128224825,20.0,196.03,195.97,6.1654]
[1735128225934,12.7505,196.07,195.97,6.1654]
[1735128225935,23.902374,196.02,195.97,6.1654]
[1735128226138,23.902374,196.02,195.92,6.076]
[1735128226139,36.656174,196.02,195.92,6.076]
[1735128227942,20.0,195.99,195.92,6.076]
[1735128228140,23.902374,195.98,195.92,6.076]
[1735128228337,23.902374,195.98,195.87,6.2434]
[1735128228515,23.902374,195.94,195.87,6.2434]
[1735128229230,63.769,196.02,195.84,1.615]
[1735128229544,23.776884,195.98,195.84,1.615]
[1735128229721,0.12549,195.94,195.84,1.615]
[1735128230044,23.902374,195.94,195.84,1.615]
[1735128230257,36.661774,195.94,195.84,1.615]
[1735128230544,23.902374,195.9,195.82,6.2434]
[1735128230750,20.0,195.91,195.82,6.2434]
[1735128231245,20.0,195.94,195.82,6.2434]
[1735128231620,20.0,195.95,195.82,6.2434]
[1735128232117,0.12549,195.97,195.85,20.0]
[1735128232533,0.12549,195.97,195.82,6.2434]
[1735128232852,0.12549,195.97,195.85,20.0]
[1735128233052,23.902374,195.97,195.85,20.0]
[1735128233761,23.776884,195.99,195.88,1.615]
[1735128233958,27.54961532,196.0,195.89,6.2434]
[1735128236053,27.54961532,196.0,195.93,20.0]
[1735128236442,27.54961532,196.0,195.89,6.2434]
[1735128237952,23.902374,196.03,195.89,6.2434]
[1735128239957,36.655674,196.03,195.89,6.2434]
[1735128240838,20.0,196.0,195.89,6.2434]
[1735128241745,0.12549,195.97,195.89,6.2434]
[1735128242472,20.0,196.0,195.89,6.2434]
[1735128243340,36.658074,195.99,195.89,6.2434]
[1735128243735,12.7537,196.03,195.89,6.2434]
[1735128244178,12.751,196.07,195.92,20.0]
[1735128244352,12.751,196.07,195.89,6.2434]
[1735128245141,12.751,196.07,195.92,20.0]
[1735128245672,7.75760947,196.08,195.94,6.1875]
[1735128245840,12.7486,196.1,195.94,6.1875]
[1735128246043,0.12549,196.09,195.94,6.1875]
[1735128246362,12.7486,196.1,195.95,1.614]
[1735128246662,0.12549,196.09,195.95,1.614]
[1735128247472,0.12549,196.05,195.95,1.614]
[1735128247652,0.12549,196.03,195.95,1.614]
[1735128247854,20.0,196.06,195.95,1.614]
[1735128248368,23.902374,196.05,195.95,1.614]
[1735128248741,23.902374,196.01,195.95,1.614]
[1735128250172,36.656874,196.01,195.95,1.614]
[1735128250377,36.656874,196.01,195.94,6.1875]
[1735128250739,20.0,195.98,195.94,6.1875]
[1735128250947,23.902374,195.97,195.9,1.614]
[1735128251373,23.902374,195.97,195.89,6.1875]
[1735128251579,23.902374,195.93,195.89,6.1875]
[1735128251863,23.902374,195.93,195.85,1.614]
[1735128252067,20.0,195.94,195.85,1.614]
[1735128252257,20.0,195.93,195.85,1.614]
[1735128252581,12.755,196.01,195.85,1.614]
[1735128252766,23.776884,195.97,195.85,1.614]
[1735128252945,0.12549,195.96,195.85,1.614]
[1735128253274,20.0,195.94,195.85,1.614]
[1735128254460,23.902374,195.93,195.85,1.614]
[1735128254650,36.661974,195.93,195.85,1.614]
[1735128254983,23.902374,195.93,195.85,1.614]
[1735128255175,20.0,195.94,195.85,1.614]
[1735128255773,23.902374,195.93,195.85,1.614]
[1735128256084,0.12549,195.89,195.84,6.1875]
[1735128256373,23.902374,195.89,195.84,6.1875]
[1735128256774,23.902374,195.85,195.8,1.614]
[1735128257071,23.902374,195.85,195.79,6.1875]
[1735128257847,23.902374,195.85,195.74,1.614]
[1735128257848,23.902374,195.81,195.74,8.1263]
[1735128258275,20.0,195.78,195.74,6.5123]
[1735128258490,23.902374,195.81,195.74,6.5123]
[1735128259260,36.670174,195.81,195.74,6.5123]
[1735128259863,23.902374,195.77,195.69,8.0829]
[1735128260396,20.0,195.78,195.69,8.0829]
[1735128261467,23.902374,195.77,195.69,8.0829]
[1735128261960,23.902374,195.77,195.69,6.5123]
[1735128262165,23.902374,195.73,195.69,6.5123]
[1735128262564,20.0,195.7,195.69,6.5123]
[1735128262765,23.902374,195.69,195.64,6.5123]
[1735128263490,20.0,195.7,195.64,6.5123]
[1735128263991,23.776884,195.72,195.64,6.5123]
[1735128265171,12.7679,195.81,195.64,6.5123]
[1735128265675,0.12549,195.81,195.64,6.5123]
[1735128266567,20.0,195.77,195.64,6.5123]
[1735128267999,20.0,195.77,195.65,1.5706]
[1735128268469,23.902374,195.76,195.65,1.5706]
[1735128269916,32.7701,195.77,195.65,1.5706]
[1735128270091,23.776884,195.78,195.65,1.5706]
[1735128270700,23.902374,195.74,195.65,1.5706]
[1735128271196,23.902374,195.7,195.64,6.5123]
[1735128271371,20.0,195.67,195.64,6.5123]
[1735128272000,23.902374,195.71,195.64,6.5123]
[1735128272698,0.12549,195.69,195.64,6.5123]
[1735128273005,23.902374,195.69,195.64,6.5123]
[1735128275470,23.776884,195.73,195.64,6.5123]
[1735128275893,0.12549,195.72,195.64,6.5123]
[1735128276099,23.902374,195.69,195.64,6.5123]
[1735128276515,23.902374,195.69,195.6,1.5706]
[1735128276676,12.7726,195.74,195.6,1.5706]
[1735128276978,20.0,195.71,195.6,1.5706]
[1735128277181,23.776884,195.7,195.6,1.5706]
[1735128277911,20.0,195.74,195.6,1.5706]
[1735128278076,23.776884,195.73,195.6,1.5706]
[1735128278270,12.7687,195.79,195.6,1.5706]
[1735128278491,38.3062,195.79,195.62,6.1721]
[1735128279304,12.7687,195.79,195.62,6.1721]
[1735128279509,12.7687,195.79,195.65,20.0]
[1735128279878,0.12549,195.78,195.62,6.1721]
[1735128280581,0.12549,195.79,195.62,6.1721]
[1735128280791,23.776884,195.73,195.62,6.1721]
[1735128280985,23.902374,195.69,195.62,6.1721]
[1735128281692,23.902374,195.65,195.53,7.8106]
[1735128281893,36.680774,195.65,195.53,7.8106]
[1735128284692,20.0,195.65,195.53,7.8106]
[1735128285800,23.902374,195.67,195.53,7.8106]
[1735128286177,23.902374,195.65,195.53,7.8106]
[1735128286376,12.7772,195.66,195.53,6.1721]
[1735128286580,27.59018457,195.73,195.56,0.12549]
[1735128286874,0.12549,195.72,195.56,0.12549]
[1735128287073,12.89879,195.72,195.55,6.1721]
[1735128287782,20.0,195.69,195.55,6.1721]
[1735128287980,20.0,195.68,195.55,6.1721]
[1735128288203,0.12549,195.67,195.55,6.1721]
[1735128288399,0.12549,195.64,195.55,6.1721]
[1735128288706,12.90209,195.67,195.55,6.1721]
[1735128288906,20.0,195.64,195.55,6.1721]
[1735128289110,0.12549,195.65,195.55,6.1721]
[1735128290586,23.902374,195.63,195.55,6.1721]
[1735128292507,20.0,195.68,195.55,6.1721]
[1735128292724,20.0,195.64,195.55,6.1721]
[1735128292898,12.7746,195.7,195.55,6.1721]
[1735128294005,12.7726,195.74,195.58,20.0]
[1735128294314,12.7726,195.74,195.6,1.6071]
[1735128294611,12.7699,195.78,195.62,20.0]
[1735128294912,12.7699,195.78,195.63,6.1004]
[1735128295712,12.7699,195.78,195.63,6.86692251]
[1735128296397,12.7699,195.78,195.63,6.1004]
[1735128296702,12.7655,195.84,195.7,20.0]
[1735128296911,12.7633,195.88,195.72,6.1004]
[1735128297499,0.12549,195.87,195.72,6.1004]
[1735128297713,12.7633,195.88,195.72,6.1004]
[1735128298413,0.12549,195.85,195.72,6.1004]
[1735128299114,20.0,195.82,195.72,6.1004]
[1735128299814,12.7642,195.86,195.72,6.1004]
[1735128299815,20.0,195.83,195.72,6.1004]
[1735128299995,12.7642,195.86,195.72,6.1004]
[1735128300514,0.12549,195.85,195.72,6.1004]
[1735128301409,20.0,195.83,195.72,6.1004]
[1735128302018,43.902374,195.82,195.72,6.1004]
[1735128302398,56.669174,195.82,195.72,6.1004]
[1735128302904,56.669174,195.82,195.66,1.6226]
[1735128303119,56.669174,195.82,195.67,6.2104]
[1735128303494,82.202774,195.82,195.67,6.2104]
[1735128304198,23.902374,195.76,195.61,7.833]
[1735128304418,0.12549,195.68,195.61,7.833]
[1735128304716,23.902374,195.68,195.61,7.833]
[1735128305295,20.0,195.65,195.61,6.2104]
[1735128305501,23.902374,195.64,195.55,1.6226]
[1735128305699,36.681274,195.64,195.55,1.6226]
[1735128307207,23.902374,195.6,195.53,6.2104]
[1735128309929,20.0,195.61,195.53,6.2104]
[1735128310809,20.0,195.65,195.53,6.2104]
[1735128312013,0.12549,195.62,195.53,6.2104]
[1735128312221,20.12549,195.59,195.53,6.2104]
[1735128312713,0.12549,195.59,195.53,6.2104]
[1735128313021,20.0,195.6,195.53,6.2104]
[1735128313823,23.902374,195.59,195.53,6.2104]
[1735128314014,20.0,195.56,195.53,6.2104]
[1735128315338,20.0,195.56,195.49,1.6226]
[1735128315623,32.784,195.56,195.49,1.6226]
[1735128316003,20.0,195.52,195.48,6.2104]
[1735128316209,20.0,195.52,195.43,1.6226]
[1735128317325,20.0,195.57,195.44,0.89284446]
[1735128317527,20.0,195.57,195.45,6.1178]
[1735128318134,0.12549,195.56,195.45,6.1178]
[1735128318326,20.0,195.57,195.45,6.1178]
[1735128318910,20.0,195.61,195.46,23.902374]
[1735128319605,20.0,195.61,195.46,23.776884]
[1735128319812,20.12549,195.63,195.46,23.902374]
[1735128319997,20.12549,195.63,195.47,0.76717152]
[1735128320201,12.7772,195.66,195.49,6.1178]
[1735128320401,0.12549,195.65,195.49,6.1178]
[1735128321205,0.12549,195.67,195.49,6.1178]
[1735128321423,43.902374,195.63,195.49,6.1178]
[1735128321618,20.12549,195.63,195.49,6.1178]
[1735128321829,0.12549,195.58,195.49,6.1178]
[1735128322014,20.0,195.55,195.49,6.1178]
[1735128322517,20.0,195.54,195.49,6.1178]